fUST/lending_fUST_20250221
["ID","MTS","AMOUNT","RATE_DAILY","PERIOD"]
[353872123,1740106239156,-3381.52,0.0001378,2]
[353872124,1740106239166,-500.0,0.0001378,2]
[353872125,1740106239175,-500.0,0.0001378,2]
[353872126,1740106239184,-1943.47,0.0001378,2]
[353872127,1740106239193,-1045.97,0.0001378,2]
[353872128,1740106239202,-1212.41,0.0001378,2]
[353872129,1740106239211,-1020.03,0.0001378,2]
[353872130,1740106239220,-500.0,0.0001378,2]
[353872131,1740106239229,-660.73,0.0001378,2]
[353872132,1740106239238,-500.0,0.0001378,2]
[353872133,1740106239248,-1893.39,0.0001378,2]
[353872134,1740106239257,-541.62,0.0001378,2]
[353872135,1740106239266,-500.0,0.0001378,2]
[353872136,1740106239275,-500.0,0.0001378,2]
[353872137,1740106239285,-500.0,0.0001378,2]
[353872138,1740106239294,-500.0,0.0001378,2]
[353872139,1740106239303,-1285.94,0.0001378,2]
[353872141,1740106239312,-1080.46,0.0001378,2]
[353872143,1740106239321,-500.0,0.0001378,2]
[353872145,1740106239330,-500.0,0.0001378,2]
[353872146,1740106239339,-500.0,0.0001378,2]
[353872147,1740106239348,-9208.68,0.0001378,2]
[353872148,1740106239357,-500.0,0.0001378,2]
[353872149,1740106239366,-500.0,0.0001378,2]
[353872150,1740106239375,-500.0,0.0001378,2]
[353872151,1740106239385,-500.0,0.0001378,2]
[353872152,1740106239394,-500.0,0.0001378,2]
[353872153,1740106239403,-1313.31,0.0001378,2]
[353872154,1740106239412,-500.0,0.0001378,2]
[353872155,1740106239421,-996.7,0.0001378,2]
[353872156,1740106239431,-904.34,0.0001378,2]
[353872157,1740106239440,-3045.65,0.0001378,2]
[353872158,1740106239449,-500.0,0.0001378,2]
[353872159,1740106239459,-500.0,0.0001378,2]
[353872161,1740106239467,-500.0,0.0001378,2]
[353872162,1740106239475,-4206.78,0.0001378,2]
[353872164,1740106239484,-500.0,0.0001378,2]
[353872166,1740106239493,-500.0,0.0001378,2]
[353872168,1740106239502,-1118.74,0.0001378,2]
[353872170,1740106239511,-500.0,0.0001378,2]
[353872172,1740106239520,-2061.4,0.0001378,2]
[353872174,1740106239529,-7809.58,0.0001378,2]
[353872176,1740106239645,-500.0,0.0001378,2]
[353872177,1740106239657,-500.0,0.0001378,2]
[353872178,1740106239667,-1425.02,0.0001378,2]
[353872180,1740106239676,-5678.85868223,0.00013845,2]
[353872182,1740106239687,-500.0,0.00013863,2]
[353872183,1740106239696,-500.0,0.00013863,2]
[353872184,1740106239706,-500.0,0.00013863,2]
[353872185,1740106239714,-500.0,0.00013863,2]
[353872186,1740106239724,-500.0,0.00013863,2]
[353872187,1740106239733,-500.24904968,0.00013863,2]
[353872188,1740106239742,-507.11130393,0.00013863,2]
[353872189,1740106239751,-500.0,0.00013863,2]
[353872190,1740106239760,-500.0,0.00013863,2]
[353872191,1740106239769,-500.0,0.00013863,2]
[353872192,1740106239778,-500.0,0.00013863,2]
[353872194,1740106239787,-500.0,0.00013863,2]
[353872196,1740106239797,-607.34,0.00013863,2]
[353872198,1740106239806,-500.0,0.00013863,2]
[353872199,1740106239814,-500.0,0.00013863,2]
[353872200,1740106239823,-500.0,0.00013863,2]
[353872201,1740106239832,-550.31,0.00013863,2]
[353872202,1740106239841,-500.0,0.00013863,2]
[353872203,1740106239850,-500.0,0.00013863,2]
[353872204,1740106239859,-500.0,0.00013863,2]
[353872205,1740106239868,-500.0,0.00013863,2]
[353872206,1740106239877,-500.0,0.00013863,2]
[353872207,1740106239886,-500.0,0.00013863,2]
[353872209,1740106239895,-500.0,0.00013863,2]
[353872210,1740106239904,-507.42087559,0.00013863,2]
[353872211,1740106239913,-601.68,0.00013863,2]
[353872212,1740106239923,-500.0,0.00013863,2]
[353872213,1740106239931,-507.34246424,0.00013863,2]
[353872214,1740106239941,-500.0,0.00013863,2]
[353872215,1740106239950,-500.0,0.00013863,2]
[353872216,1740106239958,-500.0,0.00013863,2]
[353872217,1740106239967,-500.0,0.00013863,2]
[353872218,1740106239977,-500.0,0.00013863,2]
[353872219,1740106239986,-500.0,0.00013863,2]
[353872220,1740106239995,-500.0,0.00013863,2]
[353872221,1740106240005,-500.0,0.00013863,2]
[353872222,1740106240014,-500.0,0.00013863,2]
[353872223,1740106240023,-575.24,0.00013863,2]
[353872224,1740106240032,-552.44,0.00013863,2]
[353872225,1740106240041,-500.0,0.00013863,2]
[353872226,1740106240051,-18596.38,0.00013863,2]
[353872227,1740106240060,-500.0,0.00013863,2]
[353872228,1740106240069,-814.72,0.00013863,2]
[353872229,1740106240078,-500.0,0.00013863,2]
[353872230,1740106240087,-1004.96,0.00013863,2]
[353872231,1740106240096,-658.35,0.00013863,2]
[353872232,1740106240106,-500.0,0.00013863,2]
[353872233,1740106240115,-681.55,0.00013863,2]
[353872234,1740106240124,-500.0,0.00013863,2]
[353872235,1740106240133,-500.0,0.00013863,2]
[353872236,1740106240143,-500.0,0.00013863,2]
[353872237,1740106240152,-641.17,0.00013863,2]
[353872238,1740106240162,-1280.65,0.00013863,2]
[353872239,1740106240171,-733.16,0.00013863,2]
[353872240,1740106240181,-500.0,0.00013863,2]
[353872241,1740106240190,-1612.95,0.00013863,2]
[353872242,1740106240199,-3381.52,0.00013863,2]
[353872243,1740106240208,-500.0,0.00013863,2]
[353872244,1740106240217,-500.0,0.00013863,2]
[353872245,1740106240226,-1943.47,0.00013863,2]
[353872246,1740106240235,-1045.97,0.00013863,2]
[353872247,1740106240244,-1212.41,0.00013863,2]
[353872248,1740106240253,-1020.03,0.00013863,2]
[353872249,1740106240262,-500.0,0.00013863,2]
[353872250,1740106240271,-660.73,0.00013863,2]
[353872251,1740106240280,-500.0,0.00013863,2]
[353872252,1740106240289,-1893.39,0.00013863,2]
[353872253,1740106240298,-541.62,0.00013863,2]
[353872254,1740106240307,-500.0,0.00013863,2]
[353872255,1740106240316,-500.0,0.00013863,2]
[353872256,1740106240325,-500.0,0.00013863,2]
[353872257,1740106240334,-500.0,0.00013863,2]
[353872258,1740106240343,-1285.94,0.00013863,2]
[353872259,1740106240352,-1080.46,0.00013863,2]
[353872260,1740106240361,-500.0,0.00013863,2]
[353872261,1740106240370,-500.0,0.00013863,2]
[353872262,1740106240379,-500.0,0.00013863,2]
[353872263,1740106240388,-9208.68,0.00013863,2]
[353872264,1740106240397,-500.0,0.00013863,2]
[353872265,1740106240406,-500.0,0.00013863,2]
[353872266,1740106240415,-500.0,0.00013863,2]
[353872267,1740106240424,-500.0,0.00013863,2]
[353872268,1740106240433,-500.0,0.00013863,2]
[353872269,1740106240443,-1313.31,0.00013863,2]
[353872270,1740106240452,-500.0,0.00013863,2]
[353872271,1740106240461,-996.7,0.00013863,2]
[353872272,1740106240470,-904.34,0.00013863,2]
[353872273,1740106240479,-3045.65,0.00013863,2]
[353872274,1740106240488,-500.0,0.00013863,2]
[353872275,1740106240497,-500.0,0.00013863,2]
[353872276,1740106240505,-500.0,0.00013863,2]
[353872277,1740106240514,-4206.78,0.00013863,2]
[353872278,1740106240523,-500.0,0.00013863,2]
[353872279,1740106240532,-500.0,0.00013863,2]
[353872280,1740106240541,-1118.74,0.00013863,2]
[353872281,1740106240550,-2061.4,0.00013863,2]
[353872282,1740106240559,-7809.58,0.00013863,2]
[353872283,1740106240568,-430.04102964,0.00013863,2]
[353872284,1740106240577,-418.45113689,0.00013863,2]
[353872285,1740106240585,-1425.02,0.00013863,2]
[353872286,1740106240594,-420.0,0.00013924,2]
[353872287,1740106240603,-925.78036369,0.00013943,2]
[353872288,1740106240612,-500.0,0.00013945,2]
[353872289,1740106240622,-507.07882964,0.00013945,2]
[353872290,1740106240630,-508.24773107,0.00013945,2]
[353872291,1740106240639,-508.18143835,0.00013945,2]
[353872292,1740106240651,-500.0,0.00013945,2]
[353872293,1740106240660,-500.0,0.00013945,2]
[353872294,1740106240668,-500.0,0.00013945,2]
[353872295,1740106240678,-500.0,0.00013945,2]
[353872296,1740106240687,-625.66626844,0.00013945,2]
[353872297,1740106240698,-500.0,0.00013945,2]
[353872298,1740106240707,-607.34,0.00013945,2]
[353872299,1740106240716,-500.0,0.00013945,2]
[353872300,1740106240727,-500.0,0.00013945,2]
[353872301,1740106240737,-500.0,0.00013945,2]
[353872302,1740106240746,-550.31,0.00013945,2]
[353872303,1740106240755,-500.0,0.00013945,2]
[353872304,1740106240766,-500.0,0.00013945,2]
[353872305,1740106240778,-500.0,0.00013945,2]
[353872306,1740106240791,-500.0,0.00013945,2]
[353872307,1740106240803,-500.0,0.00013945,2]
[353872308,1740106240816,-500.0,0.00013945,2]
[353872309,1740106240826,-500.0,0.00013945,2]
[353872310,1740106240837,-601.68,0.00013945,2]
[353872311,1740106240849,-500.0,0.00013945,2]
[353872312,1740106240860,-500.0,0.00013945,2]
[353872313,1740106240872,-500.0,0.00013945,2]
[353872314,1740106240883,-500.0,0.00013945,2]
[353872315,1740106240895,-500.0,0.00013945,2]
[353872316,1740106240907,-500.0,0.00013945,2]
[353872317,1740106240918,-500.0,0.00013945,2]
[353872318,1740106240929,-500.0,0.00013945,2]
[353872319,1740106240942,-500.0,0.00013945,2]
[353872320,1740106240957,-500.0,0.00013945,2]
[353872321,1740106240969,-575.24,0.00013945,2]
[353872322,1740106240981,-552.44,0.00013945,2]
[353872323,1740106240992,-500.0,0.00013945,2]
[353872324,1740106241004,-18596.38,0.00013945,2]
[353872325,1740106241016,-500.0,0.00013945,2]
[353872326,1740106241027,-814.72,0.00013945,2]
[353872327,1740106241038,-500.0,0.00013945,2]
[353872328,1740106241051,-1004.96,0.00013945,2]
[353872329,1740106241063,-658.35,0.00013945,2]
[353872330,1740106241074,-500.0,0.00013945,2]
[353872331,1740106241086,-681.55,0.00013945,2]
[353872332,1740106241096,-608.411473,0.00013945,2]
[353872333,1740106241106,-500.0,0.00013945,2]
[353872334,1740106241116,-500.0,0.00013945,2]
[353872335,1740106241129,-641.17,0.00013945,2]
[353872336,1740106241139,-1280.65,0.00013945,2]
[353872337,1740106241152,-733.16,0.00013945,2]
[353872338,1740106241165,-500.0,0.00013945,2]
[353872339,1740106241176,-1612.95,0.00013945,2]
[353872340,1740106241188,-3381.52,0.00013945,2]
[353872341,1740106241201,-500.0,0.00013945,2]
[353872342,1740106241213,-500.0,0.00013945,2]
[353872343,1740106241224,-1943.47,0.00013945,2]
[353872344,1740106241236,-1045.97,0.00013945,2]
[353872345,1740106241250,-1212.41,0.00013945,2]
[353872346,1740106241261,-1020.03,0.00013945,2]
[353872347,1740106241271,-500.0,0.00013945,2]
[353872348,1740106241282,-660.73,0.00013945,2]
[353872349,1740106241292,-500.0,0.00013945,2]
[353872350,1740106241302,-1893.39,0.00013945,2]
[353872351,1740106241313,-541.62,0.00013945,2]
[353872352,1740106241325,-500.0,0.00013945,2]
[353872353,1740106241338,-500.0,0.00013945,2]
[353872354,1740106241350,-500.0,0.00013945,2]
[353872355,1740106241360,-500.0,0.00013945,2]
[353872356,1740106241370,-1285.94,0.00013945,2]
[353872357,1740106241380,-1080.46,0.00013945,2]
[353872358,1740106241391,-500.0,0.00013945,2]
[353872359,1740106241402,-500.0,0.00013945,2]
[353872360,1740106241414,-343.97326887,0.00013945,2]
[353872361,1740106241424,-9208.68,0.00013945,2]
[353872362,1740106241434,-500.0,0.00013945,2]
[353872363,1740106241445,-500.0,0.00013945,2]
[353872364,1740106241455,-500.0,0.00013945,2]
[353872365,1740106241465,-500.0,0.00013945,2]
[353872366,1740106241476,-500.0,0.00013945,2]
[353872367,1740106241486,-1313.31,0.00013945,2]
[353872368,1740106241496,-500.0,0.00013945,2]
[353872369,1740106241507,-996.7,0.00013945,2]
[353872370,1740106241518,-904.34,0.00013945,2]
[353872371,1740106241528,-3045.65,0.00013945,2]
[353872372,1740106241539,-500.0,0.00013945,2]
[353872373,1740106241549,-500.0,0.00013945,2]
[353872374,1740106241559,-500.0,0.00013945,2]
[353872375,1740106241570,-4206.78,0.00013945,2]
[353872376,1740106241580,-216.07203135,0.00013945,2]
[353872377,1740106241591,-500.0,0.00013945,2]
[353872378,1740106241601,-1118.74,0.00013945,2]
[353872379,1740106241611,-2061.4,0.00013945,2]
[353872380,1740106241621,-7809.58,0.00013945,2]
[353872381,1740106241633,-1425.02,0.00013945,2]
[353872382,1740106241645,-500.0,0.00014026,2]
[353872383,1740106241658,-190.7288058,0.00014026,2]
[353872384,1740106241668,-404.16632473,0.00014026,2]
[353872385,1740106241679,-500.0,0.00014027,2]
[353872386,1740106241688,-500.0,0.00014027,2]
[353872387,1740106241700,-500.0,0.00014027,2]
[353872388,1740106241710,-500.0,0.00014027,2]
[353872389,1740106241721,-500.0,0.00014027,2]
[353872390,1740106241740,-500.0,0.00014027,2]
[353872391,1740106241750,-607.34,0.00014027,2]
[353872392,1740106241760,-500.0,0.00014027,2]
[353872393,1740106241771,-357.65815289,0.00014027,2]
[353872394,1740106241781,-500.0,0.00014027,2]
[353872395,1740106241791,-550.31,0.00014027,2]
[353872396,1740106241802,-500.0,0.00014027,2]
[353872397,1740106241812,-505.80932262,0.00014027,2]
[353872398,1740106241823,-500.0,0.00014027,2]
[353872399,1740106241833,-500.0,0.00014027,2]
[353872400,1740106241843,-500.0,0.00014027,2]
[353872401,1740106241854,-500.0,0.00014027,2]
[353872402,1740106241864,-500.0,0.00014027,2]
[353872403,1740106241875,-601.68,0.00014027,2]
[353872404,1740106241885,-500.0,0.00014027,2]
[353872405,1740106241896,-500.0,0.00014027,2]
[353872406,1740106241907,-500.0,0.00014027,2]
[353872407,1740106241918,-500.0,0.00014027,2]
[353872408,1740106241931,-500.0,0.00014027,2]
[353872409,1740106241942,-500.0,0.00014027,2]
[353872410,1740106241953,-500.0,0.00014027,2]
[353872411,1740106241964,-500.0,0.00014027,2]
[353872412,1740106241975,-500.0,0.00014027,2]
[353872413,1740106241986,-500.0,0.00014027,2]
[353872414,1740106241996,-575.24,0.00014027,2]
[353872415,1740106242006,-552.44,0.00014027,2]
[353872416,1740106242018,-500.0,0.00014027,2]
[353872417,1740106242029,-18596.38,0.00014027,2]
[353872418,1740106242040,-500.0,0.00014027,2]
[353872419,1740106242051,-814.72,0.00014027,2]
[353872420,1740106242062,-500.0,0.00014027,2]
[353872421,1740106242073,-1004.96,0.00014027,2]
[353872422,1740106242084,-658.35,0.00014027,2]
[353872423,1740106242095,-377.1476117,0.00014027,2]
[353872424,1740106242106,-681.55,0.00014027,2]
[353872425,1740106242117,-500.0,0.00014027,2]
[353872426,1740106242128,-500.0,0.00014027,2]
[353872427,1740106242278,-641.17,0.00014027,2]
[353872428,1740106242290,-1280.65,0.00014027,2]
[353872429,1740106242300,-733.16,0.00014027,2]
[353872430,1740106242310,-500.0,0.00014027,2]
[353872431,1740106242320,-1612.95,0.00014027,2]
[353872432,1740106242329,-3381.52,0.00014027,2]
[353872433,1740106242339,-500.0,0.00014027,2]
[353872434,1740106242349,-500.0,0.00014027,2]
[353872435,1740106242359,-1943.47,0.00014027,2]
[353872436,1740106242369,-1045.97,0.00014027,2]
[353872437,1740106242379,-1212.41,0.00014027,2]
[353872439,1740106242388,-1020.03,0.00014027,2]
[353872440,1740106242398,-500.0,0.00014027,2]
[353872441,1740106242409,-660.73,0.00014027,2]
[353872442,1740106242419,-500.0,0.00014027,2]
[353872443,1740106242428,-1893.39,0.00014027,2]
[353872444,1740106242438,-541.62,0.00014027,2]
[353872446,1740106242449,-500.0,0.00014027,2]
[353872447,1740106242460,-500.0,0.00014027,2]
[353872448,1740106242470,-500.0,0.00014027,2]
[353872449,1740106242479,-500.0,0.00014027,2]
[353872450,1740106242489,-1285.94,0.00014027,2]
[353872452,1740106242499,-1080.46,0.00014027,2]
[353872453,1740106242509,-500.0,0.00014027,2]
[353872454,1740106242519,-500.0,0.00014027,2]
[353872455,1740106242528,-9208.68,0.00014027,2]
[353872456,1740106242538,-500.0,0.00014027,2]
[353872457,1740106242547,-507.01818726,0.00014027,2]
[353872458,1740106242556,-500.0,0.00014027,2]
[353872459,1740106242566,-224.8062211,0.00014027,2]
[353872460,1740106242576,-500.0,0.00014027,2]
[353872461,1740106242585,-1313.31,0.00014027,2]
[353872462,1740106242595,-500.0,0.00014027,2]
[353872464,1740106242605,-996.7,0.00014027,2]
[353872466,1740106242614,-904.34,0.00014027,2]
[353872468,1740106242625,-3045.65,0.00014027,2]
[353872469,1740106242635,-500.0,0.00014027,2]
[353872470,1740106242644,-500.0,0.00014027,2]
[353872471,1740106242656,-500.0,0.00014027,2]
[353872472,1740106242666,-4206.78,0.00014027,2]
[353872473,1740106242676,-500.0,0.00014027,2]
[353872474,1740106242685,-1118.74,0.00014027,2]
[353872475,1740106242695,-2061.4,0.00014027,2]
[353872476,1740106242706,-7809.58,0.00014027,2]
[353872477,1740106242716,-1425.02,0.00014027,2]
[353872478,1740106242726,-500.0,0.00014054,2]
[353872479,1740106242736,-500.0,0.00014109,2]
[353872480,1740106242745,-500.0,0.00014109,2]
[353872481,1740106242754,-500.0,0.00014109,2]
[353872482,1740106242763,-500.0,0.00014109,2]
[353872483,1740106242772,-500.0,0.00014109,2]
[353872484,1740106242782,-500.0,0.00014109,2]
[353872485,1740106242791,-607.34,0.00014109,2]
[353872486,1740106242801,-500.0,0.00014109,2]
[353872487,1740106242810,-500.0,0.00014109,2]
[353872488,1740106242820,-550.31,0.00014109,2]
[353872489,1740106242829,-500.0,0.00014109,2]
[353872490,1740106242839,-500.0,0.00014109,2]
[353872491,1740106242848,-500.0,0.00014109,2]
[353872492,1740106242857,-500.0,0.00014109,2]
[353872494,1740106242867,-500.0,0.00014109,2]
[353872495,1740106242876,-500.0,0.00014109,2]
[353872496,1740106242885,-601.68,0.00014109,2]
[353872497,1740106242895,-500.0,0.00014109,2]
[353872498,1740106242904,-500.0,0.00014109,2]
[353872499,1740106242914,-500.0,0.00014109,2]
[353872500,1740106242923,-500.0,0.00014109,2]
[353872501,1740106242933,-232.64796735,0.00014109,2]
[353872502,1740106242943,-510.04550111,0.00014109,2]
[353872503,1740106242953,-500.0,0.00014109,2]
[353872504,1740106242962,-500.0,0.00014109,2]
[353872505,1740106242972,-500.0,0.00014109,2]
[353872506,1740106242981,-500.0,0.00014109,2]
[353872507,1740106242990,-575.24,0.00014109,2]
[353872508,1740106242999,-552.44,0.00014109,2]
[353872509,1740106243009,-500.0,0.00014109,2]
[353872510,1740106243019,-18596.38,0.00014109,2]
[353872511,1740106243028,-500.0,0.00014109,2]
[353872512,1740106243037,-814.72,0.00014109,2]
[353872513,1740106243047,-1004.96,0.00014109,2]
[353872514,1740106243056,-500.0,0.00014109,2]
[353872516,1740106243066,-658.35,0.00014109,2]
[353872518,1740106243074,-681.55,0.00014109,2]
[353872520,1740106243083,-500.0,0.00014109,2]
[353872522,1740106243092,-500.0,0.00014109,2]
[353872523,1740106243101,-641.17,0.00014109,2]
[353872525,1740106243111,-1280.65,0.00014109,2]
[353872527,1740106243120,-733.16,0.00014109,2]
[353872530,1740106243130,-500.0,0.00014109,2]
[353872531,1740106243140,-1612.95,0.00014109,2]
[353872532,1740106243150,-3381.52,0.00014109,2]
[353872533,1740106243159,-500.0,0.00014109,2]
[353872534,1740106243169,-500.0,0.00014109,2]
[353872535,1740106243179,-1943.47,0.00014109,2]
[353872536,1740106243188,-1045.97,0.00014109,2]
[353872537,1740106243198,-1212.41,0.00014109,2]
[353872538,1740106243208,-1020.03,0.00014109,2]
[353872539,1740106243217,-500.0,0.00014109,2]
[353872540,1740106243226,-660.73,0.00014109,2]
[353872541,1740106243236,-500.0,0.00014109,2]
[353872542,1740106243245,-1893.39,0.00014109,2]
[353872543,1740106243255,-541.62,0.00014109,2]
[353872544,1740106243265,-261.77239442,0.00014109,2]
[353872545,1740106243274,-500.0,0.00014109,2]
[353872546,1740106243284,-500.0,0.00014109,2]
[353872547,1740106243294,-500.0,0.00014109,2]
[353872548,1740106243303,-1285.94,0.00014109,2]
[353872549,1740106243313,-1080.46,0.00014109,2]
[353872550,1740106243322,-506.26753492,0.00014109,2]
[353872551,1740106243331,-500.0,0.00014109,2]
[353872552,1740106243341,-9208.68,0.00014109,2]
[353872553,1740106243351,-500.0,0.00014109,2]
[353872554,1740106243362,-500.0,0.00014109,2]
[353872555,1740106243371,-500.0,0.00014109,2]
[353872556,1740106243380,-1313.31,0.00014109,2]
[353872557,1740106243390,-500.0,0.00014109,2]
[353872558,1740106243400,-996.7,0.00014109,2]
[353872559,1740106243410,-904.34,0.00014109,2]
[353872560,1740106243420,-3045.65,0.00014109,2]
[353872561,1740106243430,-500.0,0.00014109,2]
[353872562,1740106243439,-500.0,0.00014109,2]
[353872563,1740106243449,-500.0,0.00014109,2]
[353872564,1740106243459,-4206.78,0.00014109,2]
[353872565,1740106243468,-500.0,0.00014109,2]
[353872566,1740106243477,-1118.74,0.00014109,2]
[353872567,1740106243486,-2061.4,0.00014109,2]
[353872568,1740106243496,-7809.58,0.00014109,2]
[353872569,1740106243505,-600.0,0.00014164,2]
[353872570,1740106243514,-500.0,0.00014173,2]
[353872571,1740106243524,-501.3968598,0.00014173,2]
[353872572,1740106243534,-500.99293683,0.00014173,2]
[353872573,1740106243543,-500.0,0.00014173,2]
[353872574,1740106243554,-500.16756831,0.00014173,2]
[353872575,1740106243563,-500.2151841,0.00014173,2]
[353872576,1740106243573,-279.99377584,0.00014173,2]
[353872577,1740106243583,-517.12891589,0.00014173,2]
[353872578,1740106243593,-500.8256556,0.00014173,2]
[353872579,1740106243602,-501.48132129,0.00014173,2]
[353872580,1740106243612,-500.0,0.00014173,2]
[353872581,1740106243621,-500.0,0.00014191,2]
[353872582,1740106243631,-500.0,0.00014191,2]
[353872583,1740106243640,-500.0,0.00014191,2]
[353872584,1740106243651,-500.0,0.00014191,2]
[353872585,1740106243661,-500.0,0.00014191,2]
[353872586,1740106243670,-500.0,0.00014191,2]
[353872587,1740106243680,-607.34,0.00014191,2]
[353872588,1740106243689,-219.05290424,0.00014191,2]
[353872589,1740106243701,-500.0,0.00014191,2]
[353872590,1740106243711,-550.31,0.00014191,2]
[353872591,1740106243720,-500.0,0.00014191,2]
[353872592,1740106243732,-500.0,0.00014191,2]
[353872593,1740106243742,-500.0,0.00014191,2]
[353872594,1740106243752,-500.0,0.00014191,2]
[353872595,1740106243761,-500.0,0.00014191,2]
[353872596,1740106243770,-500.0,0.00014191,2]
[353872597,1740106243780,-601.68,0.00014191,2]
[353872598,1740106243790,-500.0,0.00014191,2]
[353872599,1740106243799,-500.0,0.00014191,2]
[353872600,1740106243808,-500.0,0.00014191,2]
[353872601,1740106243818,-500.0,0.00014191,2]
[353872602,1740106243828,-500.0,0.00014191,2]
[353872603,1740106243837,-548.51021941,0.00014191,2]
[353872604,1740106243846,-500.0,0.00014191,2]
[353872605,1740106243855,-521.20982767,0.00014191,2]
[353872606,1740106243865,-575.24,0.00014191,2]
[353872607,1740106243874,-552.44,0.00014191,2]
[353872608,1740106243884,-500.0,0.00014191,2]
[353872609,1740106243893,-18596.38,0.00014191,2]
[353872610,1740106243903,-500.0,0.00014191,2]
[353872611,1740106243912,-814.72,0.00014191,2]
[353872612,1740106243922,-1004.96,0.00014191,2]
[353872613,1740106243932,-500.0,0.00014191,2]
[353872614,1740106243941,-658.35,0.00014191,2]
[353872615,1740106243952,-681.55,0.00014191,2]
[353872616,1740106243962,-508.37035668,0.00014191,2]
[353872617,1740106243975,-500.0,0.00014191,2]
[353872618,1740106243984,-641.17,0.00014191,2]
[353872619,1740106243993,-1280.65,0.00014191,2]
[353872620,1740106244005,-733.16,0.00014191,2]
[353872621,1740106244014,-500.0,0.00014191,2]
[353872622,1740106244024,-1612.95,0.00014191,2]
[353872623,1740106244033,-3381.52,0.00014191,2]
[353872624,1740106244043,-500.0,0.00014191,2]
[353872625,1740106244052,-636.34537082,0.00014191,2]
[353872626,1740106244061,-1943.47,0.00014191,2]
[353872627,1740106244070,-1045.97,0.00014191,2]
[353872628,1740106244079,-1212.41,0.00014191,2]
[353872629,1740106244088,-1020.03,0.00014191,2]
[353872630,1740106244097,-500.0,0.00014191,2]
[353872631,1740106244106,-660.73,0.00014191,2]
[353872632,1740106244116,-500.0,0.00014191,2]
[353872633,1740106244125,-1893.39,0.00014191,2]
[353872634,1740106244134,-541.62,0.00014191,2]
[353872635,1740106244143,-500.0,0.00014191,2]
[353872636,1740106244152,-500.0,0.00014191,2]
[353872637,1740106244163,-500.0,0.00014191,2]
[353872638,1740106244172,-1285.94,0.00014191,2]
[353872639,1740106244182,-1080.46,0.00014191,2]
[353872640,1740106244192,-500.0,0.00014191,2]
[353872641,1740106244202,-9208.68,0.00014191,2]
[353872642,1740106244211,-500.0,0.00014191,2]
[353872643,1740106244220,-506.03743178,0.00014191,2]
[353872644,1740106244230,-500.0,0.00014191,2]
[353872645,1740106244239,-1313.31,0.00014191,2]
[353872646,1740106244248,-374.74986051,0.00014191,2]
[353872647,1740106244258,-996.7,0.00014191,2]
[353872648,1740106244267,-904.34,0.00014191,2]
[353872649,1740106244276,-3045.65,0.00014191,2]
[353872650,1740106244285,-500.0,0.00014191,2]
[353872651,1740106244295,-500.0,0.00014191,2]
[353872652,1740106244303,-500.0,0.00014191,2]
[353872653,1740106244313,-4206.78,0.00014191,2]
[353872654,1740106244324,-500.0,0.00014191,2]